fUSD/lending_fUSD_20240105
["ID","MTS","AMOUNT","RATE_DAILY","PERIOD"]
[310256191,1704424284869,-1231.35,0.00036438,3]
[310256192,1704424284880,-1256.48,0.00036438,3]
[310256193,1704424284891,-500.0,0.00036438,3]
[310256194,1704424284900,-500.0,0.00036438,3]
[310256195,1704424285042,-500.0,0.00036438,3]
[310256196,1704424285051,-2582.67,0.00036438,3]
[310256197,1704424285061,-506.2282928,0.00036438,3]
[310256198,1704424285070,-1321.69,0.00036438,3]
[310256199,1704424285079,-985.31,0.00036438,3]
[310256200,1704424285090,-500.0,0.00036438,3]
[310256201,1704424285099,-639.04485602,0.00036438,3]
[310256202,1704424285109,-804.83,0.00036438,3]
[310256203,1704424285118,-672.09,0.00036438,3]
[310256204,1704424285127,-500.0,0.00036438,3]
[310256205,1704424285136,-500.0,0.00036438,3]
[310256206,1704424285146,-500.0,0.00036438,3]
[310256207,1704424285155,-1836.89,0.00036438,3]
[310256208,1704424285165,-500.0,0.00036438,3]
[310256209,1704424285174,-1010.49,0.00036438,3]
[310256210,1704424285185,-500.0,0.00036438,3]
[310256211,1704424285194,-507.5949457,0.00036438,3]
[310256212,1704424285203,-500.0,0.00036438,3]
[310256213,1704424285214,-762.87,0.00036438,3]
[310256214,1704424285223,-500.0,0.00036438,3]
[310256215,1704424285232,-786.79,0.00036438,3]
[310256216,1704424285241,-5862.64,0.00036438,3]
[310256217,1704424285251,-1785.52,0.00036438,3]
[310256218,1704424285261,-500.0,0.00036438,3]
[310256219,1704424285271,-934.12,0.00036438,3]
[310256220,1704424285281,-521.74327003,0.00036438,3]
[310256221,1704424285291,-519.19726116,0.00036438,3]
[310256222,1704424285300,-500.0,0.00036438,3]
[310256223,1704424285310,-500.0,0.00036438,3]
[310256224,1704424285321,-912.64,0.00036438,3]
[310256225,1704424285330,-808.85,0.00036438,3]
[310256226,1704424285342,-882.36,0.00036438,3]
[310256227,1704424285351,-510.22390116,0.00036438,3]
[310256228,1704424285361,-1259.24,0.00036438,3]
[310256229,1704424285370,-13869.62,0.00036438,3]
[310256230,1704424285380,-523.54427798,0.00036438,3]
[310256231,1704424285389,-500.0,0.00036438,3]
[310256232,1704424285399,-500.0,0.00036438,3]
[310256233,1704424285408,-500.0,0.00036438,3]
[310256234,1704424285418,-518.73258142,0.00036438,3]
[310256235,1704424285427,-3101.88,0.00036438,3]
[310256236,1704424285436,-500.0,0.00036438,3]
[310256237,1704424285445,-785.92,0.00036438,3]
[310256238,1704424285455,-1091.42,0.00036438,3]
[310256239,1704424285465,-586.04,0.00036438,3]
[310256240,1704424285475,-500.0,0.00036438,3]
[310256241,1704424285484,-500.0,0.00036438,3]
[310256242,1704424285494,-1268.16,0.00036438,3]
[310256243,1704424285504,-500.0,0.00036438,3]
[310256244,1704424285513,-500.0,0.00036438,3]
[310256245,1704424285522,-1189.46,0.00036438,3]
[310256246,1704424285532,-606.27,0.00036438,3]
[310256247,1704424285541,-1481.99,0.00036438,3]
[310256248,1704424285550,-593.38,0.00036438,3]
[310256249,1704424285559,-500.0,0.00036438,3]
[310256250,1704424285569,-500.0,0.00036438,3]
[310256251,1704424285578,-500.0,0.00036438,3]
[310256252,1704424285587,-1085.76,0.00036438,3]
[310256253,1704424285597,-1106.51,0.00036438,3]
[310256254,1704424285607,-500.0,0.00036438,3]
[310256255,1704424285617,-500.0,0.00036438,3]
[310256256,1704424285626,-500.0,0.00036438,3]
[310256257,1704424285635,-1351.81,0.00036438,3]
[310256258,1704424285644,-500.0,0.00036438,3]
[310256259,1704424285653,-527.94835857,0.00036438,3]
[310256260,1704424285663,-500.0,0.00036438,3]
[310256261,1704424285672,-512.21603876,0.00036438,3]
[310256262,1704424285682,-765.09,0.00036438,3]
[310256263,1704424285691,-500.0,0.00036438,3]
[310256264,1704424285701,-533.78317465,0.00036438,3]
[310256265,1704424285710,-500.0,0.00036438,3]
[310256266,1704424285720,-545.65,0.00036438,3]
[310256267,1704424285730,-500.0,0.00036438,3]
[310256268,1704424285739,-500.0,0.00036438,3]
[310256269,1704424285749,-537.24,0.00036438,3]
[310256270,1704424285758,-500.0,0.00036438,3]
[310256271,1704424285767,-1151.66,0.00036438,3]
[310256272,1704424285776,-500.0,0.00036438,3]
[310256273,1704424285789,-779.5,0.00036438,3]
[310256274,1704424285798,-528.2980392,0.00036438,3]
[310256275,1704424285807,-1306.66,0.00036438,3]
[310256276,1704424285817,-572.88,0.00036438,3]
[310256277,1704424285826,-521.81038977,0.00036438,3]
[310256278,1704424285836,-500.0,0.00036438,3]
[310256279,1704424285846,-500.0,0.00036438,3]
[310256280,1704424285855,-500.0,0.00036438,3]
[310256281,1704424285865,-500.0,0.00036438,3]
[310256282,1704424285874,-500.0,0.00036438,3]
[310256283,1704424285883,-500.0,0.00036438,3]
[310256284,1704424285893,-8188.31,0.00036438,3]
[310256285,1704424285902,-500.0,0.00036438,3]
[310256286,1704424285911,-500.0,0.00036438,3]
[310256287,1704424285921,-1063.95,0.00036438,3]
[310256288,1704424285931,-500.0,0.00036438,3]
[310256289,1704424285944,-798.53,0.00036438,3]
[310256290,1704424285954,-500.0,0.00036438,3]
[310256291,1704424285963,-500.0,0.00036438,3]
[310256292,1704424285973,-528.36,0.00036438,3]
[310256293,1704424285983,-500.0,0.00036438,3]
[310256294,1704424285992,-500.0,0.00036438,3]
[310256295,1704424286002,-500.0,0.00036438,3]
[310256296,1704424286012,-920.16,0.00036438,3]
[310256297,1704424286022,-500.0,0.00036438,3]
[310256298,1704424286031,-500.0,0.00036438,3]
[310256299,1704424286043,-510.58705877,0.00036438,3]
[310256300,1704424286053,-526.68994863,0.00036438,3]
[310256301,1704424286063,-500.0,0.00036438,3]
[310256302,1704424286073,-500.0,0.00036438,3]
[310256303,1704424286083,-510.31487022,0.00036438,3]
[310256304,1704424286094,-663.44,0.00036438,3]
[310256305,1704424286105,-500.0,0.00036438,3]
[310256306,1704424286117,-1622.28,0.00036438,3]
[310256307,1704424286127,-500.0,0.00036438,3]
[310256308,1704424286137,-711.28,0.00036438,3]
[310256309,1704424286148,-500.0,0.00036438,3]
[310256310,1704424286157,-500.0,0.00036438,3]
[310256311,1704424286168,-502.3,0.00036438,3]
[310256312,1704424286177,-500.0,0.00036438,3]
[310256313,1704424286187,-2080.27,0.00036438,3]
[310256314,1704424286197,-835.35,0.00036438,3]
[310256315,1704424286206,-500.0,0.00036438,3]
[310256316,1704424286216,-327.65602626,0.00036438,3]
[310256317,1704424286225,-500.0,0.00036438,3]
[310256318,1704424286235,-500.0,0.00036438,3]
[310256319,1704424286245,-500.0,0.00036438,3]
[310256320,1704424286256,-2415.78,0.00036438,3]
[310256321,1704424286266,-500.0,0.00036438,3]
[310256322,1704424286275,-558.41,0.00036438,3]
[310256323,1704424286284,-500.0,0.00036438,3]
[310256324,1704424286294,-500.0,0.00036438,3]
[310256325,1704424286305,-500.0,0.00036438,3]
[310256326,1704424286315,-500.0,0.00036438,3]
[310256327,1704424286325,-548.27811618,0.00036438,3]
[310256328,1704424286334,-500.0,0.00036438,3]
[310256329,1704424286344,-500.0,0.00036438,3]
[310256330,1704424286353,-500.0,0.00036438,3]
[310256331,1704424286363,-500.0,0.00036438,3]
[310256332,1704424286373,-500.0,0.00036438,3]
[310256333,1704424286383,-500.0,0.00036438,3]
[310256334,1704424286394,-500.0,0.00036438,3]
[310256335,1704424286405,-542.19,0.00036438,3]
[310256336,1704424286415,-500.0,0.00036438,3]
[310256337,1704424286425,-500.0,0.00036438,3]
[310256338,1704424286435,-500.0,0.00036438,3]
[310256339,1704424286445,-500.0,0.00036438,3]
[310256340,1704424286457,-500.0,0.00036438,3]
[310256341,1704424286467,-500.0,0.00036438,3]
[310256342,1704424286477,-1511.27,0.00036438,3]
[310256343,1704424286487,-500.0,0.00036438,3]
[310256344,1704424286497,-4392.23,0.00036438,3]
[310256345,1704424286506,-500.0,0.00036438,3]
[310256346,1704424286516,-500.0,0.00036438,3]
[310256347,1704424286525,-1318.19,0.00036438,3]
[310256348,1704424286535,-500.0,0.00036438,3]
[310256349,1704424286545,-500.0,0.00036438,3]
[310256350,1704424286554,-500.0,0.00036438,3]
[310256351,1704424286563,-500.0,0.00036438,3]
[310256352,1704424286572,-592.11689542,0.00036438,3]
[310256353,1704424286582,-868.93,0.00036438,3]
[310256354,1704424286593,-500.0,0.00036438,3]
[310256355,1704424286602,-157.40105,0.00036498,2]
[310256356,1704424286611,-300.0,0.000365,10]
[310256357,1704424286621,-1015.2250948,0.000365,2]
[310256358,1704424286630,-1000.0,0.00036507,2]
[310256359,1704424286639,-1111.2,0.0003652,2]
[310256360,1704424286648,-153.84,0.0003653,2]
[310256361,1704424286657,-150.0,0.00036554,2]
[310256362,1704424286667,-215.45,0.00036613,15]
[310256363,1704424286676,-6829.56934814,0.00036616,2]
[310256364,1704424286685,-154.87,0.00036685,2]
[310256365,1704424286694,-7005.62256658,0.00036696,10]
[310256366,1704424286703,-11507.23081688,0.00036696,10]
[310256367,1704424286713,-5559.41987949,0.00036696,10]
[310256368,1704424286721,-52134.69570835,0.00036696,13]
[310256369,1704424286731,-8473.80660162,0.00036696,13]
[310256370,1704424286741,-21832.55688537,0.00036696,13]
[310256371,1704424286752,-157.40105,0.00036698,2]
[310256372,1704424286761,-500.0,0.00036711,3]
[310256373,1704424286771,-150.0,0.00036711,2]
[310256374,1704424286780,-1689.74221378,0.00036712,3]
[310256375,1704424286792,-180.69,0.00036712,2]
[310256376,1704424286803,-500.0,0.00036712,3]
[310256377,1704424286814,-500.0,0.00036712,3]
[310256378,1704424286825,-500.0,0.00036712,3]
[310256379,1704424286835,-525.79324949,0.00036712,3]
[310256380,1704424286847,-337.28519247,0.00036712,3]
[310256381,1704424286856,-500.0,0.00036712,3]
[310256382,1704424286865,-500.0,0.00036712,2]
[310256383,1704424286874,-500.0,0.00036712,3]
[310256384,1704424286885,-500.0,0.00036712,3]
[310256385,1704424286894,-500.0,0.00036712,3]
[310256386,1704424286905,-500.0,0.00036712,3]
[310256387,1704424286916,-760.75,0.00036712,3]
[310256388,1704424286931,-500.0,0.00036712,3]
[310256389,1704424286940,-515.73231112,0.00036712,3]
[310256390,1704424286950,-500.0,0.00036712,3]
[310256391,1704424286960,-500.0,0.00036712,3]
[310256392,1704424286969,-500.0,0.00036712,3]
[310256393,1704424286979,-500.0,0.00036712,3]
[310256394,1704424286989,-500.0,0.00036712,3]
[310256395,1704424287000,-583.53,0.00036712,3]
[310256396,1704424287011,-500.0,0.00036712,3]
[310256397,1704424287021,-500.0,0.00036712,3]
[310256398,1704424287030,-500.0,0.00036712,3]
[310256399,1704424287039,-500.0,0.00036712,3]
[310256400,1704424287049,-500.0,0.00036712,3]
[310256401,1704424287058,-500.0,0.00036712,3]
[310256402,1704424287067,-500.0,0.00036712,3]
[310256403,1704424287077,-500.0,0.00036712,3]
[310256404,1704424287087,-500.0,0.00036712,3]
[310256405,1704424287097,-500.0,0.00036712,3]
[310256406,1704424287107,-500.0,0.00036712,3]
[310256407,1704424287116,-669.12,0.00036712,3]
[310256408,1704424287127,-625.73926243,0.00036712,3]
[310256409,1704424287136,-500.0,0.00036712,3]
[310256410,1704424287145,-296.54068905,0.00036712,3]
[310256411,1704424287154,-518.42328907,0.00036712,3]
[310256412,1704424287163,-500.0,0.00036712,3]
[310256413,1704424287172,-500.0,0.00036712,3]
[310256414,1704424287181,-500.0,0.00036712,3]
[310256415,1704424287191,-500.0,0.00036712,3]
[310256416,1704424287200,-500.0,0.00036712,3]
[310256417,1704424287209,-530.89,0.00036712,3]
[310256418,1704424287219,-500.0,0.00036712,3]
[310256419,1704424287228,-500.0,0.00036712,3]
[310256420,1704424287237,-500.0,0.00036712,3]
[310256421,1704424287246,-500.0,0.00036712,3]
[310256422,1704424287256,-500.0,0.00036712,3]
[310256423,1704424287265,-500.0,0.00036712,3]
[310256424,1704424287402,-500.0,0.00036712,3]
[310256425,1704424287411,-500.0,0.00036712,3]
[310256426,1704424287420,-500.0,0.00036712,3]
[310256427,1704424287430,-370.17165384,0.00036712,3]
[310256428,1704424287439,-500.0,0.00036712,3]
[310256429,1704424287448,-565.19602686,0.00036712,3]
[310256430,1704424287457,-500.0,0.00036712,3]
[310256431,1704424287466,-500.0,0.00036712,3]
[310256432,1704424287475,-500.0,0.00036712,3]
[310256433,1704424287485,-500.0,0.00036712,3]
[310256434,1704424287494,-500.0,0.00036712,3]
[310256435,1704424287503,-500.0,0.00036712,3]
[310256436,1704424287512,-500.0,0.00036712,3]
[310256437,1704424287521,-500.0,0.00036712,3]
[310256438,1704424287530,-500.0,0.00036712,3]
[310256439,1704424287539,-500.0,0.00036712,3]
[310256440,1704424287548,-510.61041958,0.00036712,3]
[310256441,1704424287557,-500.0,0.00036712,3]
[310256442,1704424287566,-500.0,0.00036712,3]
[310256443,1704424287575,-500.0,0.00036712,3]
[310256444,1704424287585,-500.0,0.00036712,3]
[310256445,1704424287594,-500.0,0.00036712,3]
[310256446,1704424287603,-506.99378281,0.00036712,3]
[310256447,1704424287613,-500.0,0.00036712,3]
[310256448,1704424287624,-500.0,0.00036712,3]
[310256449,1704424287633,-500.0,0.00036712,3]
[310256450,1704424287642,-500.0,0.00036712,3]
[310256451,1704424287651,-500.0,0.00036712,3]
[310256452,1704424287660,-517.12623344,0.00036712,3]
[310256453,1704424287669,-500.0,0.00036712,3]
[310256454,1704424287678,-500.0,0.00036712,3]
[310256455,1704424287688,-534.6977565,0.00036712,3]
[310256456,1704424287698,-500.0,0.00036712,3]
[310256457,1704424287707,-500.0,0.00036712,3]
[310256458,1704424287717,-500.0,0.00036712,3]
[310256459,1704424287726,-500.0,0.00036712,3]
[310256460,1704424287735,-500.0,0.00036712,3]
[310256461,1704424287744,-500.0,0.00036712,3]
[310256462,1704424287753,-638.71644825,0.00036712,3]
[310256463,1704424287762,-500.0,0.00036712,3]
[310256464,1704424287772,-500.0,0.00036712,3]
[310256465,1704424287781,-154.68072872,0.00036712,3]
[310256466,1704424287790,-500.0,0.00036712,3]
[310256467,1704424287800,-500.0,0.00036712,3]
[310256468,1704424287810,-500.0,0.00036712,3]
[310256469,1704424287821,-500.0,0.00036712,3]
[310256470,1704424287831,-500.0,0.00036712,3]
[310256471,1704424287842,-500.0,0.00036712,3]
[310256472,1704424287851,-500.0,0.00036712,3]
[310256473,1704424287861,-533.16965294,0.00036712,3]
[310256474,1704424287870,-500.0,0.00036712,3]
[310256475,1704424287880,-500.0,0.00036712,3]
[310256476,1704424287889,-500.0,0.00036712,3]
[310256477,1704424287898,-500.0,0.00036712,3]
[310256478,1704424287907,-479.78953771,0.00036712,3]
[310256479,1704424287916,-500.0,0.00036712,3]
[310256480,1704424287930,-500.0,0.00036712,3]
[310256481,1704424287939,-500.0,0.00036712,3]
[310256482,1704424287949,-575.94919465,0.00036712,3]
[310256483,1704424287958,-500.0,0.00036712,3]
[310256484,1704424287967,-500.0,0.00036712,3]
[310256485,1704424287976,-500.0,0.00036712,3]
[310256486,1704424287986,-573.60107463,0.00036712,3]
[310256487,1704424287995,-500.0,0.00036712,3]
[310256488,1704424288005,-500.0,0.00036712,3]
[310256489,1704424288014,-500.0,0.00036712,3]
[310256490,1704424288024,-516.3951112,0.00036712,3]
[310256491,1704424288033,-373.21354144,0.00036712,3]
[310256492,1704424288042,-512.12409553,0.00036712,3]
[310256493,1704424288052,-500.0,0.00036712,3]
[310256494,1704424288060,-500.0,0.00036712,3]
[310256495,1704424288069,-500.0,0.00036712,3]
[310256496,1704424288078,-500.0,0.00036712,3]
[310256497,1704424288087,-518.78718418,0.00036712,3]
[310256498,1704424288097,-500.0,0.00036712,3]
[310256499,1704424288106,-500.0,0.00036712,3]
[310256500,1704424288115,-508.35627572,0.00036712,3]
[310256501,1704424288124,-500.0,0.00036712,3]
[310256502,1704424288133,-500.0,0.00036712,3]
[310256503,1704424288143,-546.31543465,0.00036712,3]
[310256504,1704424288153,-500.0,0.00036712,3]
[310256505,1704424288163,-510.20231461,0.00036712,3]
[310256506,1704424288173,-500.0,0.00036712,3]
[310256507,1704424288182,-500.0,0.00036712,3]
[310256508,1704424288193,-500.0,0.00036712,3]
[310256509,1704424288203,-500.0,0.00036712,3]
[310256510,1704424288214,-500.0,0.00036712,3]
[310256511,1704424288224,-500.0,0.00036712,3]
[310256512,1704424288234,-500.0,0.00036712,3]
[310256513,1704424288244,-500.0,0.00036712,3]
[310256514,1704424288255,-500.0,0.00036712,3]
[310256515,1704424288265,-500.0,0.00036712,3]
[310256516,1704424288274,-591.48240173,0.00036712,3]
[310256517,1704424288283,-500.0,0.00036712,3]
[310256518,1704424288293,-500.0,0.00036712,3]
[310256519,1704424288303,-500.0,0.00036712,3]
[310256520,1704424288312,-500.0,0.00036712,3]
[310256521,1704424288323,-627.13146025,0.00036712,3]
[310256522,1704424288334,-644.61653889,0.00036712,3]
[310256523,1704424288344,-296.98200133,0.00036712,3]
[310256524,1704424288359,-500.0,0.00036712,3]
[310256525,1704424288369,-500.0,0.00036712,3]
[310256526,1704424288379,-500.0,0.00036712,3]
[310256527,1704424288390,-954.7,0.00036712,3]
[310256528,1704424288400,-500.0,0.00036712,3]
[310256529,1704424288409,-500.0,0.00036712,3]
[310256530,1704424288419,-541.89970017,0.00036712,3]
[310256531,1704424288428,-498.09393766,0.00036712,3]
[310256532,1704424288437,-500.0,0.00036712,3]
[310256533,1704424288447,-500.0,0.00036712,3]
[310256534,1704424288457,-500.0,0.00036712,3]
[310256535,1704424288467,-500.0,0.00036712,3]
[310256536,1704424288476,-500.0,0.00036712,3]
[310256537,1704424288486,-500.0,0.00036712,3]
[310256538,1704424288496,-500.0,0.00036712,3]
[310256539,1704424288506,-500.0,0.00036712,3]
[310256540,1704424288515,-553.29862052,0.00036712,3]
[310256541,1704424288525,-500.0,0.00036712,3]
[310256542,1704424288534,-500.0,0.00036712,3]
[310256543,1704424288544,-500.0,0.00036712,3]
[310256544,1704424288554,-500.0,0.00036712,3]
[310256545,1704424288563,-261.45529723,0.00036712,3]
[310256546,1704424288573,-500.0,0.00036712,3]
[310256547,1704424288583,-500.0,0.00036712,3]
[310256548,1704424288592,-500.0,0.00036712,3]
[310256549,1704424288605,-505.56226283,0.00036712,3]
[310256550,1704424288615,-524.87039659,0.00036712,3]
[310256551,1704424288624,-500.0,0.00036712,3]
[310256552,1704424288634,-500.0,0.00036712,3]
[310256553,1704424288644,-500.0,0.00036712,3]
[310256554,1704424288654,-500.0,0.00036712,3]
[310256555,1704424288663,-500.0,0.00036712,3]
[310256556,1704424288673,-500.0,0.00036712,3]
[310256557,1704424288683,-500.0,0.00036712,3]
[310256558,1704424288692,-500.0,0.00036712,3]
[310256559,1704424288702,-346.58737013,0.00036712,3]
[310256560,1704424288711,-500.0,0.00036712,3]
[310256561,1704424288720,-500.0,0.00036712,3]
[310256562,1704424288730,-500.0,0.00036712,3]
[310256563,1704424288747,-480.78982414,0.00036712,3]
[310256564,1704424288760,-500.0,0.00036712,3]
[310256565,1704424288769,-500.0,0.00036712,3]
[310256566,1704424288779,-500.0,0.00036712,3]
[310256567,1704424288788,-512.44568326,0.00036712,3]
[310256568,1704424288797,-500.0,0.00036712,3]
[310256569,1704424288806,-500.0,0.00036712,3]
[310256570,1704424288815,-500.0,0.00036712,3]
[310256571,1704424288825,-500.0,0.00036712,3]
[310256572,1704424288835,-500.0,0.00036712,3]
[310256573,1704424288848,-500.0,0.00036712,3]
[310256574,1704424288857,-500.0,0.00036712,3]
[310256575,1704424288866,-500.0,0.00036712,3]
[310256576,1704424288875,-500.0,0.00036712,3]
[310256577,1704424288885,-500.0,0.00036712,3]
[310256578,1704424288894,-573.40167289,0.00036712,3]
[310256579,1704424288903,-500.0,0.00036712,3]
[310256580,1704424288912,-512.04746703,0.00036712,3]
[310256581,1704424288921,-500.0,0.00036712,3]
[310256582,1704424288935,-519.54970442,0.00036712,3]
[310256583,1704424288944,-514.12843946,0.00036712,3]
[310256584,1704424288954,-500.0,0.00036712,3]
[310256585,1704424288964,-500.0,0.00036712,3]
[310256586,1704424288973,-500.0,0.00036712,3]
[310256587,1704424288982,-500.0,0.00036712,3]
[310256588,1704424288991,-500.0,0.00036712,3]
[310256589,1704424289000,-500.0,0.00036712,3]
[310256590,1704424289011,-500.0,0.00036712,3]
[310256591,1704424289022,-500.0,0.00036712,3]
[310256592,1704424289031,-500.0,0.00036712,3]
[310256593,1704424289041,-500.0,0.00036712,3]
[310256594,1704424289050,-500.0,0.00036712,3]
[310256595,1704424289059,-500.0,0.00036712,3]
[310256596,1704424289068,-500.0,0.00036712,3]
[310256597,1704424289077,-500.0,0.00036712,3]
[310256598,1704424289087,-500.0,0.00036712,3]
[310256599,1704424289097,-500.0,0.00036712,3]
[310256600,1704424289107,-530.67314766,0.00036712,3]
[310256601,1704424289116,-874.14,0.00036712,3]
[310256602,1704424289125,-501.96395276,0.00036712,3]
[310256603,1704424289135,-500.0,0.00036712,3]
[310256604,1704424289145,-500.0,0.00036712,3]
[310256605,1704424289155,-500.0,0.00036712,3]
[310256606,1704424289164,-500.0,0.00036712,3]
[310256607,1704424289173,-500.0,0.00036712,3]
[310256608,1704424289182,-150.0,0.00036712,3]
[310256609,1704424289192,-556.38431977,0.00036712,3]
[310256610,1704424289201,-500.0,0.00036712,3]
[310256611,1704424289210,-500.0,0.00036712,3]
[310256612,1704424289220,-313.02853285,0.00036712,3]
[310256613,1704424289229,-500.0,0.00036712,3]
[310256614,1704424289239,-500.0,0.00036712,3]
[310256615,1704424289249,-500.0,0.00036712,3]
[310256616,1704424289258,-500.0,0.00036712,3]
[310256617,1704424289268,-500.0,0.00036712,3]
[310256618,1704424289277,-500.0,0.00036712,3]
[310256619,1704424289287,-540.31794091,0.00036712,3]
[310256620,1704424289296,-519.58468109,0.00036712,3]
[310256621,1704424289305,-500.0,0.00036712,3]
[310256622,1704424289314,-500.0,0.00036712,3]
[310256623,1704424289324,-509.71101676,0.00036712,3]
[310256624,1704424289334,-500.0,0.00036712,3]
[310256625,1704424289344,-500.0,0.00036712,3]
[310256626,1704424289356,-500.0,0.00036712,3]
[310256627,1704424289365,-500.0,0.00036712,3]
[310256628,1704424289375,-514.48938587,0.00036712,3]
[310256629,1704424289385,-500.0,0.00036712,3]
[310256630,1704424289394,-565.86802555,0.00036712,3]
[310256631,1704424289404,-500.0,0.00036712,3]
[310256632,1704424289413,-500.0,0.00036712,3]
[310256633,1704424289422,-500.0,0.00036712,3]
[310256634,1704424289432,-573.28,0.00036712,3]
[310256635,1704424289581,-501.45106914,0.00036712,3]
[310256636,1704424289591,-534.23443036,0.00036712,3]
[310256637,1704424289602,-500.0,0.00036712,3]
[310256638,1704424289612,-500.0,0.00036712,3]
[310256639,1704424289621,-500.0,0.00036712,3]
[310256640,1704424289630,-500.0,0.00036712,3]
[310256641,1704424289639,-500.0,0.00036712,3]
[310256642,1704424289648,-500.0,0.00036712,3]
[310256643,1704424289657,-440.68492522,0.00036712,3]
[310256644,1704424289666,-500.0,0.00036712,3]
[310256645,1704424289675,-500.0,0.00036712,3]
[310256646,1704424289684,-500.0,0.00036712,3]
[310256647,1704424289694,-500.0,0.00036712,3]
[310256648,1704424289703,-500.0,0.00036712,3]
[310256649,1704424289713,-500.0,0.00036712,3]
[310256650,1704424289723,-500.0,0.00036712,3]
[310256651,1704424289733,-500.0,0.00036712,3]
[310256652,1704424289743,-500.0,0.00036712,3]
[310256653,1704424289752,-517.81537025,0.00036712,3]
[310256654,1704424289761,-307.38184921,0.00036712,3]
[310256655,1704424289770,-500.0,0.00036712,3]
[310256656,1704424289779,-500.0,0.00036712,3]
[310256657,1704424289788,-500.0,0.00036712,3]
[310256658,1704424289797,-500.0,0.00036712,3]
[310256659,1704424289807,-500.0,0.00036712,3]
[310256660,1704424289816,-500.0,0.00036712,3]
[310256661,1704424289825,-500.0,0.00036712,3]
[310256662,1704424289835,-500.0,0.00036712,3]
[310256663,1704424289844,-500.0,0.00036712,3]
[310256664,1704424289856,-500.0,0.00036712,3]
[310256665,1704424289865,-500.0,0.00036712,3]
[310256666,1704424289875,-500.0,0.00036712,3]
[310256667,1704424289884,-586.44888668,0.00036712,3]
[310256668,1704424289893,-500.0,0.00036712,3]
[310256669,1704424289902,-500.0,0.00036712,3]
[310256670,1704424289911,-214.29892543,0.00036712,3]
[310256671,1704424289920,-559.0183928,0.00036712,3]
[310256672,1704424289929,-500.0,0.00036712,3]
[310256673,1704424289938,-500.0,0.00036712,3]
[310256674,1704424289948,-279.42592273,0.00036712,3]
[310256675,1704424289957,-500.0,0.00036712,3]
[310256676,1704424289966,-272.76247926,0.00036712,3]
[310256677,1704424289975,-500.0,0.00036712,3]
[310256678,1704424289984,-528.15044861,0.00036712,3]
[310256679,1704424289993,-500.0,0.00036712,3]
[310256680,1704424290002,-257.82895652,0.00036712,3]
[310256681,1704424290012,-500.0,0.00036712,3]
[310256682,1704424290021,-593.83,0.00036712,3]
[310256683,1704424290030,-500.0,0.00036712,3]
[310256684,1704424290039,-500.0,0.00036712,3]
[310256685,1704424290048,-551.91493163,0.00036712,3]
[310256686,1704424290058,-500.0,0.00036712,3]
[310256687,1704424290067,-3647.06,0.00036712,3]
[310256688,1704424290076,-500.0,0.00036712,3]
[310256689,1704424290085,-495.96021515,0.00036712,3]
[310256690,1704424290094,-500.0,0.00036712,3]